{"text_format":"1","workbook":"xlsx","n_sheets":6,"sheets":["Dataset","Context Menu Bar","Keyboard Shortcuts","Format Options","Group Feature","VBA"],"not_rendered":{"charts":0,"images":0,"macros":1,"external_links":0,"defined_names":0,"comments":0,"pivot_tables":0},"unopened":[],"bounds":{"document_bytes":16777216,"sheet_cells":100000,"rows_first":2000,"rows_last":500,"rows_between":2000,"halvings":0,"cell_chars":16384,"cell_head_chars":4096},"cells_cut":0,"cells_raw":0,"read":"whole","date_system":"1900"}

{"sheet":"Dataset","index":0,"n_rows":10,"n_cols":5,"rows_kept":10,"cut":false,"hidden":false,"merged":[[1,1,1,4]]}
[]
[null,"Hide Unused Columns in Excel"]
[]
[null,"Product ","Cost","Sales","Profit"]
[null,"Lily",3,4,{"$f":"D5-C5","v":1}]
[null,"Rose",5,7,{"$f":"D6-C6","v":2}]
[null,"Tulip",4,6,2]
[null,"Orchid",4,8,4]
[null,"Sunflower",6,8,2]
[null,"Daffodil",3,5,2]

{"sheet":"Context Menu Bar","index":1,"n_rows":10,"n_cols":5,"rows_kept":10,"cut":false,"hidden":false,"merged":[[1,1,1,4]]}
[]
[null,"Use of Context Menu Bar"]
[]
[null,"Product ","Cost","Sales","Profit"]
[null,"Lily",3,4,{"$f":"D5-C5","v":1}]
[null,"Rose",5,7,{"$f":"D6-C6","v":2}]
[null,"Tulip",4,6,2]
[null,"Orchid",4,8,4]
[null,"Sunflower",6,8,2]
[null,"Daffodil",3,5,2]

{"sheet":"Keyboard Shortcuts","index":2,"n_rows":10,"n_cols":5,"rows_kept":10,"cut":false,"hidden":false,"merged":[[1,1,1,4]]}
[]
[null,"Use of Keyboard Shortcuts"]
[]
[null,"Product ","Cost","Sales","Profit"]
[null,"Lily",3,4,{"$f":"D5-C5","v":1}]
[null,"Rose",5,7,{"$f":"D6-C6","v":2}]
[null,"Tulip",4,6,2]
[null,"Orchid",4,8,4]
[null,"Sunflower",6,8,2]
[null,"Daffodil",3,5,2]

{"sheet":"Format Options","index":3,"n_rows":10,"n_cols":5,"rows_kept":10,"cut":false,"hidden":false,"merged":[[1,1,1,4]]}
[]
[null,"Use of Format Options"]
[]
[null,"Product ","Cost","Sales","Profit"]
[null,"Lily",3,4,{"$f":"D5-C5","v":1}]
[null,"Rose",5,7,{"$f":"D6-C6","v":2}]
[null,"Tulip",4,6,2]
[null,"Orchid",4,8,4]
[null,"Sunflower",6,8,2]
[null,"Daffodil",3,5,2]

{"sheet":"Group Feature","index":4,"n_rows":10,"n_cols":5,"rows_kept":10,"cut":false,"hidden":false,"merged":[[1,1,1,4]]}
[]
[null,"Use of Group Feature"]
[]
[null,"Product ","Cost","Sales","Profit"]
[null,"Lily",3,4,{"$f":"D5-C5","v":1}]
[null,"Rose",5,7,{"$f":"D6-C6","v":2}]
[null,"Tulip",4,6,2]
[null,"Orchid",4,8,4]
[null,"Sunflower",6,8,2]
[null,"Daffodil",3,5,2]

{"sheet":"VBA","index":5,"n_rows":10,"n_cols":5,"rows_kept":10,"cut":false,"hidden":false,"merged":[[1,1,1,4]]}
[]
[null,"Use of VBA Code"]
[]
[null,"Product ","Cost","Sales","Profit"]
[null,"Lily",3,4,{"$f":"D5-C5","v":1}]
[null,"Rose",5,7,{"$f":"D6-C6","v":2}]
[null,"Tulip",4,6,2]
[null,"Orchid",4,8,4]
[null,"Sunflower",6,8,2]
[null,"Daffodil",3,5,2]